Workbook

Sheet Hoja1
A1: Cantidad | B1: Descripción | C1: Categoria | D1: Costo_ | E1: Costo_ s/IGV | F1: Costo_Total
A2: 96 | B2: PISO ZONA DE CONSUMO (m2) | C2: ACONDICIONAMIENTO | D2: 30.4 | E2: 37.63 | F2: =E2*A2 -> 3612.48
A3: 46 | B3: PISO ZONA ELABORACION (m2) | C3: ACONDICIONAMIENTO | D3: 32.3 | E3: 27.37 | F3: 1259.02
A4: 20 | B4: PEGAMENTO ITACO | C4: ACONDICIONAMIENTO | D4: 34.5 | E4: 29.24 | F4: 584.8
A5: 10 | B5: FRAGUA GRIS CLARO | C5: ACONDICIONAMIENTO | D5: 8.37 | E5: 7.09 | F5: 70.9
A6: 5 | B6: FRAGUA ALMENDRA | C6: ACONDICIONAMIENTO | D6: 7.2 | E6: 6.1 | F6: 30.5
A7: 1 | B7: URINARIO VAINSA | C7: ACONDICIONAMIENTO | D7: 337.04 | E7: 285.63 | F7: 285.63
A8: 1 | B8: FLUXOMETRO PARA URINARIO | C8: ACONDICIONAMIENTO | D8: 297.36 | E8: 252 | F8: 252
A9: 2 | B9: FLUXOMETRO PARA INODORO | C9: ACONDICIONAMIENTO | D9: 363.44 | E9: 308 | F9: 616
A10: 2 | B10: TASA VAINSA | C10: ACONDICIONAMIENTO | D10: 217.16 | E10: 184.03 | F10: 368.06
A11: 2 | B11: LAVADERO KLIPEN SORA BOWL BLANCO | C11: ACONDICIONAMIENTO | D11: 185.9 | E11: 157.54 | F11: 315.08
A12: 2 | B12: VAINSA PALANCA | C12: ACONDICIONAMIENTO | D12: 264.32 | E12: 224 | F12: 448
A13: 2 | B13: VAINSA PUSH DESAGUE | C13: ACONDICIONAMIENTO | D13: 61.95 | E13: 52.5 | F13: 105
A14: 2 | B14: VAINSA TRAMPA | C14: ACONDICIONAMIENTO | D14: 107.38 | E14: 91 | F14: 182
A15: 2 | B15: BASE IMPRIMANTE PARA PINTURA | C15: ACONDICIONAMIENTO | D15: 15.5 | E15: 13.14 | F15: 26.28
A16: 2 | B16: PINTURA SALON Y BAÑOS | C16: ACONDICIONAMIENTO | D16: 88 | E16: 74.58 | F16: 149.16
A17: 2 | B17: GALON PINRUTRA TECHO SALON | C17: ACONDICIONAMIENTO | D17: 88 | E17: 74.58 | F17: 149.16
A18: 2 | B18: GALON PINTURA FACHADA EXTERIOR | C18: ACONDICIONAMIENTO | D18: 88 | E18: 74.58 | F18: 149.16
A19: 6 | B19: REVESTIMIENTO MAYOLICA | C19: ACONDICIONAMIENTO | D19: 28.35 | E19: 24.03 | F19: 144.18
A20: 4 | B20: DISPENSADOR JABON | C20: ACONDICIONAMIENTO | D20: 32.4 | E20: 27.46 | F20: 109.84
A21: 2 | B21: DISPENSADOR PAPEL HIGIENICO | C21: ACONDICIONAMIENTO | D21: 39.69 | E21: 33.64 | F21: 67.28
A22: 4 | B22: DISPENSADOR PAPEL TOALLA | C22: ACONDICIONAMIENTO | D22: 128.79 | E22: 109.14 | F22: 436.56
A23: 2 | B23: ESPEJOS | C23: ACONDICIONAMIENTO | D23: 56.7 | E23: 48.05 | F23: 96.1
A24: 2 | B24: SEÑALIZACION BAÑO | C24: ACONDICIONAMIENTO | D24: 2.84 | E24: 2.4 | F24: 4.8
A25: 2 | B25: PUERTA PRINCIPAL VIDRIO | C25: ACONDICIONAMIENTO | D25: 1300 | E25: 1101.69 | F25: 2203.38
A26: 2 | B26: PUERTA BAÑO | C26: ACONDICIONAMIENTO | D26: 79.9 | E26: 67.71 | F26: 135.42
A27: 1 | B27: PUERTA COCINA | C27: ACONDICIONAMIENTO | D27: 79.9 | E27: 67.71 | F27: 67.71
A28: 5 | B28: CHAPAS PARA PUERTA | C28: ACONDICIONAMIENTO | D28: 39.9 | E28: 33.81 | F28: 169.05
A29: 6 | B29: LAMPARA INDIVIDUAL | C29: ACONDICIONAMIENTO | D29: 49.9 | E29: 42.29 | F29: 253.74
A30: 2 | B30: PLAFON PARA BAÑO | C30: ACONDICIONAMIENTO | D30: 35.9 | E30: 30.42 | F30: 60.84
A31: 40 | B31: LUZ INDIRECTA PARA SALON | C31: ACONDICIONAMIENTO | D31: 15 | E31: 12.71 | F31: 508.4
A32: 2 | B32: AMBIENTADOR | C32: ACONDICIONAMIENTO | D32: 8.1 | E32: 6.86 | F32: 13.72
A33: 12 | B33: FOCOS AHORRADOR | C33: ACONDICIONAMIENTO | D33: 10 | E33: 8.47 | F33: 101.64
A34: 130 | B34: SERVICIO DE PINTADO (m2) | C34: ACONDICIONAMIENTO | D34: 10 | E34: 8.47 | F34: 1101.1
A35: 130 | B35: COLOCACIÓN PORCELANATO (m2) | C35: ACONDICIONAMIENTO | D35: 20 | E35: 16.95 | F35: 2203.5
A36: 20 | B36: INSTALACIONES ELECTRICAS/GRIFERIAS (PUNTOS) | C36: ACONDICIONAMIENTO | D36: 20 | E36: 16.95 | F36: 339
A37: 42 | B37: TRABAJO DRYWALL PARA DIVISIONES (MATERIAL INCLUIDO) m2 | C37: ACONDICIONAMIENTO | D37: 60 | E37: 50.85 | F37: 2135.7
A38: 40 | B38: ACONDICIONAMIENTO DE COCINA (MANO DE OBRA) | C38: ACONDICIONAMIENTO | D38: 20 | E38: 16.95 | F38: 678
A39: 1 | B39: LAVADERO DE 02 POZAS ACERO INOXIDABLE AISI 304 | C39: ACONDICIONAMIENTO | D39: 1904.71 | E39: 1614.16 | F39: 1614.16
A40: 2 | B40: GRIFERIA DE AGUA FRIA PICO TIPO "L" AL MUEBLE | C40: ACONDICIONAMIENTO | D40: 370.5 | E40: 313.98 | F40: 627.96
A41: 2 | B41: SISTEMA DE DRENAJE : CANASTILLA DE ACERO /TRAMPA PVC | C41: ACONDICIONAMIENTO | D41: 256.5 | E41: 217.37 | F41: 434.74
A42: 1 | B42: DUCHA PRE - RINSE AL MUEBLE (MEZCLADOR) DE 4" | C42: ACONDICIONAMIENTO | D42: 570 | E42: 570 | F42: =E42*A42 -> 570
A43: 1 | B43: LAVADERO DE UNA POZA | C43: ACONDICIONAMIENTO | D43: 1202.99 | E43: 1202.99 | F43: =E43*A43 -> 1202.99
A44: 2 | B44: MUEBLE PARA BAÑO EN MELAMINE | C44: ACONDICIONAMIENTO | D44: 320 | E44: 271.19 | F44: =E44*A44 -> 542.38
A45: 1 | B45: MOBILIARIO MELAMINE BARRA ATENCION | C45: ACONDICIONAMIENTO | D45: 1000 | E45: 847.46 | F45: =E45*A45 -> 847.46
A46: 1 | B46: ASESORÍA DISEÑO | C46: DECORACION | D46: 2160 | E46: 1830.51 | F46: =E46*A46 -> 1830.51
A47: 10 | B47: CUADROS CHICOS, MEDIANOS Y GRANDES | C47: DECORACION | D47: 40 | E47: 33.9 | F47: =E47*A47 -> 339
A48: 8 | B48: MUEBLES ARCADIA + MESITA DE CENTRO | C48: DECORACION | D48: 1700 | E48: 1440.68 | F48: =E48*A48 -> 11525.44
A49: 1 | B49: BARRA DE ATENCIÓN | C49: DECORACION | D49: 2202 | E49: 1866.1 | F49: 1866.1
A50: 3 | B50: MESAS CIRCULARES PARA 2 PERSONAS + SILLAS | C50: DECORACION | D50: 279.9 | E50: 237.2 | F50: 711.6
A51: 6 | B51: MESAS CIRCULARES PARA 4 PERSONAS + SILLAS | C51: DECORACION | D51: 399.9 | E51: 338.9 | F51: 2033.4
A52: 1 | B52: PARLANTES Y EQUIPO DE SONIDO | C52: DECORACION | D52: 499 | E52: 422.88 | F52: 422.88
A53: 1 | B53: SILLA PARA CAJA | C53: DECORACION | D53: 59.9 | E53: 50.77 | F53: 50.77
A54: 1 | B54: ESQUINERO PARA REVISTAS Y PERIÓDICOS | C54: DECORACION | D54: 69.9 | E54: 59.24 | F54: 59.24
A55: 5 | B55: REVISTAS | C55: DECORACION | D55: 20 | E55: 16.95 | F55: 84.75
A56: 4 | B56: LIBROS DE CAFÉ Y GASTRONOMIA | C56: DECORACION | D56: 150 | E56: 127.12 | F56: 508.48
A57: 1 | B57: DISEÑO Y ELABORACIÓN PANEL DE PRECIOS | C57: DECORACION | D57: 176 | E57: 149.15 | F57: 149.15
A58: 40 | B58: CARTA | C58: DECORACION | D58: 18 | E58: 15.25 | F58: 610
A59: 4 | B59: ADHESIVOS DE SEGURIDAD | C59: DECORACION | D59: 10 | E59: 8.47 | F59: 33.88
A60: 2 | B60: EXTINTOR 2KG | C60: DECORACION | D60: 60 | E60: 50.85 | F60: 101.7
A61: 1 | B61: BOTIQUÍN GRANDE | C61: DECORACION | D61: 30 | E61: 25.42 | F61: 25.42
A62: 1 | B62: PIZARRA | C62: DECORACION | D62: 34 | E62: 28.81 | F62: 28.81
A63: 1 | B63: MODEM + INSTALACION | C63: DECORACION | D63: 139 | E63: 117.8 | F63: 117.8
A64: 10 | B64: PANTALON Y CHAQUETA | C64: UNIFORMES | D64: 65 | E64: 55.08 | F64: =(E64*A64) -> 550.8
A65: 10 | B65: GORROS | C65: UNIFORMES | D65: 5 | E65: 4.24 | F65: 42.4
A66: 10 | B66: COBERTORES | C66: UNIFORMES | D66: 5 | E66: 4.24 | F66: 42.4
A67: 10 | B67: MANDILES | C67: UNIFORMES | D67: 15 | E67: 12.71 | F67: 127.1
A68: 18 | B68: CAMISA Y PANTALON | C68: UNIFORMES | D68: 60 | E68: 50.85 | F68: 915.3
A69: 14 | B69: TARJETA DE INDENTIFICACIÓN | C69: UNIFORMES | D69: 4 | E69: 3.39 | F69: 47.46
A70: 5 | B70: Capacitación mozos | C70: CAPACITACION | D70: 800 | E70: 677.97 | F70: =(E70*A70) -> 3389.85
A71: 5 | B71: Otros gastos de capacitación | C71: CAPACITACION | D71: 40 | E71: 33.9 | F71: =(E71*A71) -> 169.5

Sheet Hoja2
A3: Categoria | B3: Cantidad_Fisica | C3: Costo_ | D3: Costo_ s/IGV | E3: Costo_Total
A4: ACONDICIONAMIENTO | B4: 663 | C4: 9888.89 | D4: 8662.72 | E4: 25272.88
A5: CAPACITACION | B5: 10 | C5: 840 | D5: 711.87 | E5: 3559.35
A6: DECORACION | B6: 91 | C6: 8047.6 | D6: 6820 | E6: 20498.93
A7: UNIFORMES | B7: 72 | C7: 154 | D7: 130.51 | E7: 1725.46
A8: Total general | B8: 836 | C8: 18930.49 | D8: 16325.1 | E8: 51056.62

Sheet Hoja3
